bitfinex/quotes_SOLUSD_20250919
["timestamp","ask_amount","ask_price","bid_price","bid_amount"]
[1758271013219,0.72,244.02,243.99,31.54]
[1758271013423,0.72,244.01,243.99,31.54]
[1758271013623,0.72,244.0,243.99,31.54]
[1758271014853,4.09852862,243.99,243.98,31.54]
[1758271015026,4.09852862,243.99,243.94,2.13936429]
[1758271015027,6.36685747,243.99,243.97,31.54]
[1758271015218,0.72,243.98,243.97,31.54]
[1758271016224,4.81869661,243.98,243.97,31.54]
[1758271018340,4.81869661,243.98,243.94,2.13936429]
[1758271018642,7.20856234,244.0,243.97,31.54]
[1758271018841,0.69,243.99,243.97,31.54]
[1758271019841,4.78867439,243.99,243.97,31.54]
[1758271021051,4.78867439,243.99,243.94,2.84936429]
[1758271021433,4.09867439,243.99,243.95,31.52]
[1758271021642,33.20841692,244.01,243.96,0.71]
[1758271021944,0.69,244.0,243.95,34.65005741]
[1758271022351,2.42005741,244.0,243.95,31.52]
[1758271022556,0.69,243.99,243.95,31.52]
[1758271022739,0.69,243.99,243.94,2.13936429]
[1758271022938,0.69,243.98,243.95,31.52]
[1758271023134,2.42005741,244.0,243.95,31.52]
[1758271023447,4.78852862,243.99,243.95,31.52]
[1758271024038,0.69,243.98,243.96,31.5]
[1758271024557,4.78872638,243.98,243.94,2.13936429]
[1758271024759,26.69,243.97,243.94,2.13936429]
[1758271025055,28.42005741,243.95,243.94,2.13936429]
[1758271025237,29.11005741,243.95,243.94,2.13936429]
[1758271026031,3.11005741,243.95,243.94,2.13936429]
[1758271026233,26.0,243.93,243.87,25.84]
[1758271026433,2.42005741,243.9,243.87,25.84]
[1758271026737,7.21025707,243.9,243.88,2.14056123]
[1758271028539,6.52025707,243.9,243.88,2.14056123]
[1758271028735,2.42005741,243.9,243.88,2.14056123]
[1758271029155,28.42005741,243.91,243.88,2.14056123]
[1758271029361,132.0,243.94,243.88,2.14056123]
[1758271029362,136.78951153,243.94,243.88,2.14056123]
[1758271029668,138.51956894,243.94,243.89,0.71]
[1758271029872,139.20956894,243.94,243.89,0.71]
[1758271031152,0.69,243.93,243.88,2.14056123]
[1758271031353,0.69,243.93,243.88,2.85056123]
[1758271032068,4.78956127,243.93,243.88,2.85056123]
[1758271032752,4.78956127,243.93,243.88,34.39056123]
[1758271033264,4.78956127,243.93,243.88,2.85056123]
[1758271033468,4.78956127,243.93,243.88,34.37056123]
[1758271033642,4.78956127,243.93,243.88,2.85056123]
[1758271033842,132.0,243.94,243.91,2.42005741]
[1758271034044,132.0,243.94,243.92,3.13005741]
[1758271034254,4.09871417,243.98,243.91,2.42005741]
[1758271034456,0.69,243.97,243.91,2.42005741]
[1758271034775,0.69,243.97,243.91,0.71]
[1758271034968,0.69,243.97,243.91,3.13005741]
[1758271036359,4.78889513,243.97,243.91,7.22991493]
[1758271038746,4.78889513,243.97,243.91,38.74991493]
[1758271038946,4.78889513,243.97,243.91,36.32985752]
[1758271039144,2.42005741,243.94,243.88,2.14056123]
[1758271039354,2.42005741,243.92,243.88,2.14056123]
[1758271039647,0.69,243.91,243.88,2.14056123]
[1758271040041,2.42005741,243.93,243.88,2.14056123]
[1758271040269,26.0,243.94,243.89,0.71]
[1758271040464,26.0,243.94,243.89,3.13005741]
[1758271040647,26.0,243.94,243.9,3.13005741]
[1758271040847,26.0,243.94,243.91,0.71]
[1758271041643,26.69,243.94,243.88,5.27061864]
[1758271041845,26.0,243.94,243.89,36.37008553]
[1758271042064,26.0,243.94,243.9,0.71]
[1758271042281,26.0,243.94,243.91,32.27]
[1758271043068,0.69,243.93,243.91,31.54]
[1758271043846,0.69,243.93,243.89,4.10008553]
[1758271044045,0.69,243.93,243.9,31.54]
[1758271044474,26.0,243.94,243.9,36.35002088]
[1758271044794,26.0,243.94,243.91,0.71]
[1758271045074,26.0,243.94,243.91,32.27]
[1758271045255,26.0,243.94,243.91,31.56]
[1758271045753,26.69,243.94,243.91,31.56]
[1758271047171,0.69,243.93,243.91,31.56]
[1758271048170,0.69,243.93,243.91,31.54]
[1758271048577,26.0,243.94,243.91,31.54]
[1758271048778,26.69,243.94,243.91,31.54]
[1758271048969,26.0,243.94,243.91,31.54]
[1758271049170,0.69,243.96,243.91,36.30981861]
[1758271049569,0.69,243.95,243.91,35.63981861]
[1758271052487,2.42005741,243.96,243.89,4.1000657]
[1758271052794,3.11005741,243.94,243.9,31.54]
[1758271052963,0.69,243.94,243.9,31.54]
[1758271053163,2.42005741,243.95,243.9,31.54]
[1758271053164,0.69,243.93,243.9,31.54]
[1758271054366,0.69,243.93,243.88,6.24091761]
[1758271054569,0.69,243.93,243.91,31.52]
[1758271057387,4.78939438,243.94,243.89,2.14020072]
[1758271057682,4.78939438,243.94,243.9,31.52]
[1758271057981,6.51939063,243.95,243.9,31.52]
[1758271058172,7.20939063,243.95,243.9,32.19]
[1758271058975,0.69,243.94,243.9,31.52]
[1758271059371,4.78940928,243.94,243.91,31.52]
[1758271059682,4.78940928,243.94,243.89,2.14020072]
[1758271059683,0.69,243.93,243.89,2.14020072]
[1758271059884,0.69,243.92,243.91,31.52]
[1758271061584,0.69,243.92,243.91,31.5]
[1758271062289,0.69,243.92,243.89,2.14020072]
[1758271062475,0.69,243.92,243.9,31.5]
[1758271063774,16.41770899,243.94,243.9,31.5]
[1758271063973,0.69,243.93,243.9,31.5]
[1758271065573,25.07250011,243.93,243.9,31.5]
[1758271068596,25.07250011,243.93,243.91,31.48]
[1758271073301,29.17209556,243.93,243.91,31.48]
[1758271073479,0.69,243.92,243.91,31.48]
[1758271074401,0.69,243.92,243.89,2.14020072]
[1758271074582,2.42005741,243.9,243.89,2.14020072]
[1758271074811,6.52009841,243.9,243.89,2.14020072]
[1758271074990,7.21009841,243.9,243.89,2.14020072]
[1758271078104,4.790041,243.9,243.89,2.14020072]
[1758271078284,7.21009841,243.9,243.89,2.14020072]
[1758271080004,6.34017899,243.9,243.89,2.14020072]
[1758271081506,6.34017899,243.9,243.81,23.0]
[1758271081507,17.61566679,243.9,243.81,23.0]
[1758271081709,0.68,243.89,243.81,23.0]
[1758271081884,26.68,243.88,243.87,2.14097359]
[1758271082207,28.23013799,243.88,243.81,23.0]
[1758271082401,1.55013799,243.86,243.81,23.72]
[1758271082604,1.55013799,243.86,243.82,0.72]
[1758271082804,2.23013799,243.86,243.82,2.86094644]
[1758271082998,2.23013799,243.86,243.82,2.14094644]
[1758271083204,4.10088168,243.85,243.82,2.14094644]
[1758271083586,5.65101967,243.85,243.82,2.14094644]
[1758271084282,2.23013799,243.84,243.82,2.14094644]
[1758271084601,1.55013799,243.83,243.82,2.14094644]
[1758271084806,2.23013799,243.83,243.82,2.14094644]
[1758271085303,32.33135605,243.83,243.82,2.14094644]
[1758271088807,32.33135605,243.83,243.81,0.1]
[1758271089012,1.55013799,243.82,243.81,0.1]
[1758271089388,28.23013799,243.82,243.81,0.1]
[1758271089782,32.33152425,243.82,243.81,0.1]
[1758271102119,63.83152425,243.82,243.81,0.1]
[1758271107608,77.7114414,243.82,243.81,1e-08]
[1758271107813,0.28432314,243.81,243.74,2.14180902]
[1758271108111,27.55013799,243.77,243.74,2.14180902]
[1758271108316,33.73013799,243.77,243.74,2.14180902]
[1758271108510,2.23013799,243.77,243.74,2.14180902]
[1758271108714,33.73013799,243.77,243.74,2.14180902]
[1758271109217,37.83236549,243.77,243.74,2.14180902]
[1758271110519,37.83236549,243.77,243.72,0.2]
[1758271111234,51.71228264,243.77,243.72,0.2]
[1758271113226,26.0,243.74,243.72,0.2]
[1758271113431,33.05013799,243.73,243.72,0.2]
[1758271113624,33.73013799,243.73,243.72,0.2]
[1758271114731,37.83303874,243.73,243.72,0.2]
[1758271120948,6.33303874,243.73,243.72,0.2]
[1758271121144,51.71295589,243.73,243.72,0.2]
[1758271121943,37.15303874,243.73,243.72,0.2]
[1758271124646,1.55013799,243.73,243.72,0.89]
[1758271124833,26.0,243.73,243.72,0.89]
[1758271125233,1.55013799,243.75,243.72,0.89]
[1758271125436,5.6530266,243.74,243.72,0.2]
[1758271125635,1.55013799,243.73,243.72,0.2]
[1758271126233,1.55013799,243.73,243.72,0.89]
[1758271127368,26.0,243.73,243.72,0.89]
[1758271129882,1.55013799,243.73,243.72,0.2]
[1758271135665,26.0,243.74,243.72,0.88]
[1758271136056,26.0,243.74,243.73,0.66]
[1758271137765,26.0,243.74,243.72,0.2]
[1758271137943,31.65287163,243.74,243.72,0.2]
[1758271138441,27.55013799,243.74,243.72,0.2]
[1758271140159,28.26013799,243.74,243.72,0.2]
[1758271140363,2.26013799,243.73,243.72,0.2]
[1758271141250,1.55013799,243.73,243.72,0.2]
[1758271141569,5.65303874,243.73,243.72,0.2]
[1758271141751,6.52825955,243.73,243.72,0.2]
[1758271142354,7.23825955,243.73,243.72,0.2]
[1758271143247,26.0,243.74,243.72,0.2]
[1758271143642,2.4253588,243.73,243.72,0.2]
[1758271144037,26.71,243.74,243.72,0.2]
[1758271144350,2.4253588,243.73,243.72,0.2]
[1758271144753,6.52825955,243.73,243.72,0.2]
[1758271144956,28.4253588,243.74,243.72,0.2]
[1758271145346,29.1353588,243.74,243.72,0.2]
[1758271145668,3.1353588,243.73,243.72,0.2]
[1758271146564,7.23825955,243.73,243.72,0.2]
[1758271152445,8.26434897,243.73,243.72,0.2]
[1758271153671,7.23825955,243.73,243.72,0.2]
[1758271154185,4.81290075,243.73,243.72,0.2]
[1758271154387,7.23825955,243.73,243.72,0.2]
[1758271154551,139.23825955,243.73,243.72,0.2]
[1758271155688,139.23825955,243.73,243.72,3.23016409]
[1758271156574,139.23825955,243.73,243.72,0.2]
[1758271162386,170.73825955,243.73,243.72,0.2]
[1758271163574,138.52825955,243.73,243.72,0.2]
[1758271163897,170.73825955,243.73,243.72,0.2]
[1758271165193,173.44794149,243.73,243.72,0.2]
[1758271165600,171.02258269,243.73,243.72,0.2]
[1758271166493,173.44794149,243.73,243.72,0.2]
[1758271166996,141.94794149,243.73,243.72,0.2]
[1758271167182,168.59722389,243.73,243.72,0.2]
[1758271167490,171.02258269,243.73,243.72,0.2]
[1758271168291,168.59722389,243.73,243.72,0.2]
[1758271168471,171.02258269,243.73,243.72,0.2]
[1758271169575,139.52258269,243.73,243.72,0.2]
[1758271169776,171.02258269,243.73,243.72,0.2]
[1758271170795,139.52258269,243.73,243.72,0.2]
[1758271171186,171.02258269,243.73,243.72,0.2]
[1758271177808,168.59722389,243.73,243.72,0.2]
[1758271178011,171.02258269,243.73,243.72,0.2]
[1758271184019,163.5,243.73,243.72,0.87]
[1758271184209,132.0,243.73,243.72,0.87]
[1758271184405,134.4253588,243.73,243.72,0.87]
[1758271184707,134.4253588,243.73,243.72,0.2]
[1758271185223,138.52825955,243.73,243.72,0.2]
[1758271188214,136.10290075,243.73,243.72,0.2]
[1758271188418,138.52825955,243.73,243.72,0.2]
[1758271189117,170.02825955,243.73,243.72,0.2]
[1758271189492,170.69825955,243.73,243.72,0.2]
[1758271190109,170.02825955,243.73,243.72,0.2]
[1758271193917,167.60290075,243.73,243.72,0.2]
[1758271194114,134.4253588,243.73,243.72,0.87]
[1758271195101,132.0,243.73,243.72,0.87]
[1758271196732,138.52825955,243.73,243.72,0.2]
[1758271197219,139.19825955,243.73,243.72,0.2]
[1758271198010,170.69825955,243.73,243.72,0.2]
[1758271199529,170.02825955,243.73,243.72,0.2]
[1758271201732,170.69825955,243.73,243.72,0.2]
[1758271201938,169.82520816,243.73,243.72,0.2]
[1758271202233,169.15520816,243.73,243.72,0.2]
[1758271203719,169.82520816,243.73,243.72,0.2]
[1758271218145,169.15520816,243.73,243.72,0.2]
[1758271219238,169.15520816,243.73,243.72,0.85]
[1758271219641,169.15520816,243.73,243.72,0.2]
[1758271220037,137.65520816,243.73,243.72,0.2]
[1758271220247,137.65520816,243.73,243.72,0.85]
[1758271220639,137.65520816,243.73,243.72,0.2]
[1758271221643,138.32520816,243.73,243.72,0.2]
[1758271222247,137.65520816,243.73,243.72,0.2]
[1758271225165,138.36520816,243.73,243.72,0.2]
[1758271226746,137.65520816,243.73,243.72,0.2]
[1758271228052,169.84520816,243.73,243.72,0.2]
[1758271228257,170.87144767,243.73,243.72,0.2]
[1758271230653,184.75136482,243.73,243.72,0.2]
[1758271230856,190.96059446,243.73,243.72,0.2]
[1758271232951,171.15577081,243.73,243.72,0.2]
[1758271238465,8.04586019,243.72,243.71,0.1]
[1758271238655,53.1214542,243.72,243.71,0.1]
[1758271238981,37.41969964,243.72,243.71,0.1]
[1758271239160,38.12969964,243.72,243.71,0.1]
[1758271240164,51.72529365,243.72,243.71,0.1]
[1758271243566,26.0,243.69,243.66,0.71]
[1758271243771,26.0,243.67,243.66,0.71]
[1758271244692,30.10391102,243.67,243.66,0.71]
[1758271246894,30.10391102,243.67,243.64,0.91]
[1758271247065,30.10391102,243.67,243.65,0.71]
[1758271247266,30.10391102,243.67,243.64,0.2]
[1758271247472,30.10391102,243.67,243.65,0.71]
[1758271248098,31.65621843,243.67,243.65,0.71]
[1758271248302,30.10391102,243.67,243.65,0.71]
[1758271248480,1.55230741,243.66,243.64,0.91]
[1758271248684,31.65621843,243.67,243.65,0.71]
[1758271250019,31.65621843,243.67,243.64,0.2]
[1758271250216,31.65621843,243.67,243.64,0.91]
[1758271251889,31.65621843,243.67,243.65,0.71]
[1758271252196,26.0,243.67,243.65,0.71]
[1758271252776,26.0,243.67,243.64,0.2]
[1758271252977,4.10375536,243.68,243.65,0.71]
[1758271253176,26.0,243.67,243.66,0.71]
[1758271253691,26.0,243.66,243.64,0.2]
[1758271253893,26.0,243.66,243.65,0.71]
[1758271254400,31.65606277,243.68,243.65,0.71]
[1758271255599,4.1039329,243.67,243.65,0.71]
[1758271256395,4.1039329,243.67,243.64,0.86]
[1758271258295,4.1039329,243.67,243.64,0.2]
[1758271258496,4.1039329,243.67,243.65,0.66]
[1758271258701,4.1039329,243.67,243.64,0.2]
[1758271258899,4.1039329,243.67,243.64,0.86]
[1758271259704,4.8039329,243.67,243.64,0.2]
[1758271260216,4.1039329,243.67,243.64,0.2]
[1758271260398,4.1039329,243.67,243.64,0.86]
[1758271260788,26.0,243.66,243.64,0.2]
[1758271261612,26.0,243.66,243.64,0.86]
[1758271261909,26.0,243.66,243.64,0.2]
[1758271262204,30.1040812,243.66,243.64,0.2]
[1758271262425,0.7,243.65,243.64,0.2]
[1758271262911,30.1040812,243.66,243.64,0.2]
[1758271263295,30.8040812,243.66,243.64,0.2]
[1758271263799,26.0,243.66,243.64,0.2]
[1758271264186,26.7,243.66,243.64,0.2]
[1758271264381,26.0,243.66,243.64,0.2]
[1758271264995,26.7,243.66,243.64,0.2]
[1758271265685,30.8040797,243.66,243.64,0.2]
[1758271266894,33.23029676,243.66,243.64,0.2]
[1758271267584,132.0,243.65,243.64,0.2]
[1758271268114,132.7,243.65,243.64,0.2]
[1758271269612,132.0,243.65,243.64,0.2]
[1758271271115,26.0,243.66,243.64,0.2]
[1758271271321,26.0,243.67,243.64,0.2]
[1758271271612,26.0,243.67,243.64,0.86]
[1758271271788,26.0,243.68,243.64,4.96438368]
[1758271272613,26.0,243.67,243.64,4.96438368]
[1758271273518,26.0,243.68,243.64,4.96438368]
[1758271273718,26.0,243.67,243.64,4.96438368]
[1758271274109,26.0,243.67,243.64,4.30438368]
[1758271276631,26.7,243.67,243.64,4.30438368]
[1758271277237,26.7,243.67,243.64,0.2]
[1758271277411,37.5672711,243.66,243.64,0.2]
[1758271277813,36.10296955,243.65,243.64,0.2]
[1758271278725,36.10296955,243.65,243.64,4.30441635]
[1758271278933,36.10296955,243.65,243.64,4.96441635]
[1758271279127,36.10296955,243.65,243.64,7.39063341]
[1758271279818,36.10296955,243.65,243.64,6.73063341]
[1758271280054,36.10296955,243.65,243.64,7.39063341]
[1758271281029,36.10296955,243.65,243.64,6.73063341]
[1758271282332,36.10296955,243.65,243.64,4.30441635]
[1758271282629,36.10296955,243.65,243.64,6.73063341]
[1758271287417,36.10296955,243.65,243.64,4.30441635]
[1758271287719,36.10296955,243.65,243.64,6.73063341]
[1758271288134,36.80296955,243.65,243.64,4.30441635]
[1758271288628,36.10296955,243.65,243.64,4.30441635]
[1758271290431,36.10296955,243.65,243.64,0.2]
[1758271290635,36.80296955,243.65,243.64,0.2]
[1758271299326,36.10296955,243.65,243.64,0.2]
[1758271299638,34.5219003,243.66,243.64,0.2]
[1758271299818,34.80800062,243.65,243.64,0.2]
[1758271300838,34.80800062,243.65,243.64,4.30441635]
[1758271301545,34.80800062,243.65,243.64,0.2]
[1758271301850,34.80800062,243.65,243.64,4.30441635]
[1758271302823,35.50800062,243.65,243.64,4.30441635]
[1758271303023,34.80800062,243.65,243.64,4.30441635]
[1758271303323,35.50800062,243.65,243.64,4.30441635]
[1758271303523,34.80800062,243.65,243.64,4.30441635]
[1758271307344,34.80800062,243.65,243.64,7.42063341]
[1758271307750,34.80800062,243.65,243.64,6.73063341]
[1758271310038,34.80800062,243.65,243.64,7.42063341]
[1758271313654,34.80800062,243.65,243.64,52.74055056]
[1758271314029,6.86191902,243.65,243.64,52.74055056]
[1758271314226,0.7,243.76,243.68,39.59559401]
[1758271314449,0.7,243.76,243.73,2.42621706]
[1758271314640,0.7,243.75,243.73,2.42621706]
[1758271315072,0.7,243.78,243.74,2.42621706]
[1758271315252,132.0,243.8,243.74,2.42621706]
[1758271315450,0.66,243.77,243.74,2.42621706]
[1758271316369,0.7,243.76,243.75,4.1025641]
[1758271317065,132.7,243.8,243.75,6.52878116]
[1758271317370,0.7,243.79,243.76,2.42621706]
[1758271318246,0.7,243.79,243.77,4.1022275]
[1758271318435,132.0,243.8,243.77,4.1022275]
[1758271318636,132.7,243.8,243.77,4.1022275]
[1758271318964,132.7,243.8,243.77,6.52844456]
[1758271319148,0.7,243.8,243.77,6.52844456]
[1758271319459,2.42621706,243.78,243.71,33.86621706]
[1758271319647,0.7,243.79,243.72,13.59559401]
[1758271319648,2.42621706,243.77,243.72,13.59559401]
[1758271319850,0.7,243.76,243.72,13.59559401]
[1758271320063,0.7,243.75,243.72,13.59559401]
[1758271320248,0.7,243.74,243.72,13.59559401]
[1758271320442,2.42621706,243.77,243.72,17.69852493]
[1758271320652,0.7,243.76,243.72,17.69852493]
[1758271320850,0.7,243.75,243.72,17.69852493]
[1758271321145,2.42621706,243.77,243.72,17.69852493]
[1758271321146,0.7,243.74,243.72,17.69852493]
[1758271321349,0.7,243.73,243.7,4.10326644]
[1758271321570,0.7,243.72,243.7,35.54326644]
[1758271322449,0.7,243.72,243.69,4.10357421]
[1758271322655,0.7,243.72,243.7,31.44]
[1758271323738,0.7,243.74,243.7,35.54339336]
[1758271324051,0.7,243.76,243.7,36.20339336]
[1758271324366,0.7,243.76,243.7,38.62961042]
[1758271324573,0.7,243.76,243.71,13.59559401]
[1758271325086,0.7,243.75,243.71,13.59559401]
[1758271325370,0.7,243.74,243.71,13.59559401]
[1758271325668,0.7,243.74,243.71,45.03559401]
[1758271325871,0.7,243.74,243.72,4.10306909]
[1758271327174,27.55158799,243.77,243.72,4.76306909]
[1758271327669,26.7,243.77,243.72,4.76306909]
[1758271327852,26.0,243.76,243.72,4.10306909]
[1758271328056,0.7,243.76,243.72,4.10306909]
[1758271328356,0.7,243.76,243.71,46.587182]
[1758271328357,1.55158799,243.74,243.64,0.2]
[1758271328557,1.55158799,243.72,243.66,13.59559401]
[1758271328866,0.7,243.72,243.66,15.147182]
[1758271329372,0.7,243.74,243.68,13.59559401]
[1758271329577,0.7,243.74,243.7,13.59559401]
[1758271329762,132.0,243.75,243.7,13.59559401]
[1758271329962,132.0,243.75,243.7,15.147182]
[1758271330269,132.7,243.75,243.7,15.147182]
[1758271330780,132.7,243.75,243.71,4.10323745]
[1758271331665,0.7,243.74,243.71,4.10323745]
[1758271332352,0.7,243.73,243.72,31.44]
[1758271333258,132.7,243.75,243.72,31.44]
[1758271333467,0.7,243.74,243.72,31.44]
[1758271333782,132.0,243.75,243.72,35.54294408]
[1758271334361,132.0,243.75,243.72,37.75453207]
[1758271334574,132.0,243.75,243.72,37.09453207]
[1758271334770,132.0,243.75,243.73,0.66]
[1758271335166,132.0,243.75,243.73,2.21158799]
[1758271335668,0.7,243.79,243.73,2.21158799]
[1758271335881,0.7,243.79,243.74,4.10273241]
[1758271336066,0.7,243.78,243.75,31.44]
[1758271338581,0.7,243.78,243.75,35.54250898]
[1758271339279,158.7,243.81,243.77,1.55158799]
[1758271339596,132.0,243.81,243.78,31.44]
[1758271339883,0.7,243.8,243.76,15.147182]
[1758271340062,0.7,243.8,243.79,31.44]
[1758271340258,0.7,243.82,243.79,31.44]
[1758271340659,132.0,243.83,243.79,31.44]
[1758271340877,132.7,243.83,243.79,31.44]
[1758271341082,0.7,243.82,243.79,31.44]
[1758271341287,132.0,243.83,243.76,13.59559401]
[1758271341288,0.7,243.81,243.8,31.44]
[1758271342380,0.7,243.81,243.77,4.10222576]
[1758271342582,0.7,243.8,243.78,31.44]
[1758271342773,0.7,243.79,243.78,31.44]
[1758271343283,134.25158799,243.83,243.78,31.44]
[1758271343655,0.7,243.82,243.78,31.44]
[1758271343855,0.7,243.81,243.78,31.44]
[1758271344069,0.7,243.8,243.78,31.44]
[1758271344271,0.7,243.79,243.76,13.59559401]
[1758271344591,0.7,243.81,243.77,31.44]
[1758271344796,134.25158799,243.83,243.78,31.44]
[1758271344972,0.7,243.82,243.79,31.44]
[1758271345881,132.0,243.83,243.79,31.44]
[1758271346091,132.66,243.83,243.79,31.44]
[1758271346260,0.66,243.82,243.79,31.44]
[1758271347359,0.66,243.82,243.8,4.10172272]
[1758271347786,4.10071852,243.86,243.8,4.10172272]
[1758271347787,26.66,243.86,243.8,4.81172272]
[1758271347994,28.21158799,243.86,243.8,4.81172272]
[1758271348176,26.66,243.86,243.81,31.42]
[1758271348376,0.66,243.85,243.81,31.42]
[1758271349005,0.66,243.84,243.81,31.42]
[1758271349158,26.0,243.86,243.81,31.42]
[1758271349363,0.66,243.85,243.81,5.65301151]
[1758271349585,0.66,243.85,243.82,31.42]
[1758271352187,0.66,243.85,243.82,35.52132286]
[1758271353891,0.66,243.85,243.82,4.10132286]
[1758271354077,0.66,243.85,243.83,31.42]
[1758271354890,0.66,243.85,243.83,35.52121352]
[1758271355061,0.66,243.85,243.81,1.55158799]
[1758271355062,0.66,243.85,243.81,5.65297933]
[1758271355264,0.66,243.85,243.82,31.42]
[1758271355994,0.66,243.85,243.81,5.65297933]
[1758271356176,0.66,243.85,243.82,31.42]
[1758271356601,5.65198122,243.88,243.83,31.42]
[1758271356778,0.66,243.86,243.83,31.42]
[1758271356979,0.66,243.87,243.83,31.42]
[1758271357594,0.66,243.87,243.82,4.1013638]
[1758271357892,0.66,243.86,243.82,4.1013638]
[1758271358097,0.66,243.85,243.83,31.42]
[1758271358271,1.55158799,243.87,243.83,31.42]
[1758271358472,5.65201996,243.88,243.83,31.42]
[1758271358668,0.66,243.87,243.83,31.42]
[1758271358983,0.66,243.87,243.83,35.52119673]
[1758271359367,132.1,243.89,243.84,13.59559401]
[1758271359588,132.76,243.89,243.85,1.55158799]
[1758271359778,132.76,243.89,243.86,31.42]
[1758271360274,132.1,243.89,243.86,31.42]
[1758271360877,132.1,243.89,243.86,32.13]
[1758271361671,132.1,243.89,243.87,31.42]
[1758271362092,132.1,243.89,243.87,32.13]
[1758271362281,132.1,243.89,243.87,31.42]
[1758271364500,132.1,243.89,243.87,35.52053307]
[1758271364976,132.1,243.89,243.87,37.78212106]
[1758271365302,0.1,243.89,243.88,1.55158799]
[1758271365486,0.1,243.89,243.88,32.97158799]
[1758271365888,0.1,243.89,243.88,1.55158799]
[1758271366091,0.1,243.89,243.88,31.42]
[1758271366492,0.76,243.89,243.88,31.42]
[1758271367000,0.1,243.89,243.88,31.42]
[1758271367637,0.1,243.89,243.88,35.52037723]
[1758271371819,0.1,243.89,243.88,36.23037723]
[1758271373700,0.1,243.89,243.88,51.37755923]
[1758271377223,0.1,243.89,243.88,19.95755923]
[1758271377427,0.1,243.89,243.88,51.35755923]
[1758271379330,0.1,243.89,243.88,51.64188237]
[1758271385709,0.1,243.89,243.88,52.51048398]
[1758271386144,0.1,243.89,243.88,20.40048398]
[1758271386343,0.1,243.89,243.88,52.51048398]
[1758271386960,0.1,243.89,243.88,21.11048398]
[1758271387452,0.1,243.89,243.88,51.80048398]
[1758271387653,0.1,243.89,243.88,20.40048398]
[1758271387826,0.1,243.89,243.88,51.80048398]
[1758271388533,0.77,243.89,243.88,20.11616084]
[1758271388735,0.77,243.89,243.88,49.09597124]
[1758271390439,0.77,243.89,243.88,17.69597124]
[1758271390648,0.77,243.89,243.88,49.09597124]
[1758271390826,0.77,243.89,243.88,17.69597124]
[1758271391436,0.77,243.89,243.88,49.09597124]
[1758271392031,0.1,243.89,243.88,51.51616084]
[1758271393620,0.1,243.89,243.88,20.11616084]
[1758271393826,0.1,243.89,243.88,51.51616084]
[1758271398437,0.77,243.89,243.88,51.51616084]
[1758271398656,0.1,243.89,243.88,51.51616084]
[1758271401140,0.1,243.89,243.88,52.22616084]
[1758271405950,0.65,243.95,243.9,0.28432314]
[1758271406150,0.65,243.94,243.91,31.4]
[1758271406351,0.65,243.94,243.93,16.01578361]
[1758271406560,0.1,243.96,243.94,13.59559401]
[1758271406856,0.1,243.96,243.95,33.8201896]
[1758271407248,0.75,243.96,243.95,33.8201896]
[1758271410655,0.75,243.96,243.95,37.91939025]
[1758271415470,0.75,243.96,243.95,51.51498426]
[1758271415860,0.1,243.96,243.95,51.51498426]
[1758271416761,0.75,243.96,243.95,51.49498426]
[1758271418581,0.1,243.96,243.95,51.49498426]
[1758271425567,0.75,243.96,243.95,20.11498426]
[1758271425768,0.75,243.96,243.95,31.38]